[Event "Late-Titled-Tuesday-Blitz-April-16-2024"]
[Site "Chess.com"]
[Date "2024.04.16"]
[Round "4"]
[White "SergioMoralesG"]
[Black "yuriydovzik"]
[Result "1/2-1/2"]
[WhiteElo "2428"]
[BlackElo "2140"]
[TimeControl "180+1"]
[EndTime "14:37:40 PDT"]
[Termination "Game drawn by repetition"]

1. d4 {[%clk 0:01:31.9]} 1... c6 {[%clk 0:02:57.8]} 2. c4 {[%clk 0:01:32]} 2...
d5 {[%clk 0:02:55.8]} 3. Nf3 {[%clk 0:01:30.5]} 3... Nf6 {[%clk 0:02:55.1]} 4.
Nc3 {[%clk 0:01:31.1]} 4... a6 {[%clk 0:02:54.3]} 5. e3 {[%clk 0:01:30.3]} 5...
b5 {[%clk 0:02:53.4]} 6. c5 {[%clk 0:01:26.9]} 6... Bg4 {[%clk 0:02:45.6]} 7.
Be2 {[%clk 0:01:24.8]} 7... e6 {[%clk 0:02:42.7]} 8. O-O {[%clk 0:01:23.3]} 8...
Be7 {[%clk 0:02:32.1]} 9. Bd2 {[%clk 0:01:22.6]} 9... a5 {[%clk 0:02:27.5]} 10.
Ne5 {[%clk 0:00:57.8]} 10... Bxe2 {[%clk 0:02:23.8]} 11. Qxe2 {[%clk 0:00:58.7]}
11... O-O {[%clk 0:02:20.9]} 12. f4 {[%clk 0:00:49.7]} 12... Qc7 {[%clk
0:02:10.8]} 13. Kh1 {[%clk 0:00:45.9]} 13... Nbd7 {[%clk 0:02:08.5]} 14. Be1
{[%clk 0:00:29]} 14... b4 {[%clk 0:01:58.4]} 15. Nd1 {[%clk 0:00:27.9]} 15...
Nxe5 {[%clk 0:01:48]} 16. fxe5 {[%clk 0:00:27.5]} 16... Ne4 {[%clk 0:01:47.8]}
17. Nf2 {[%clk 0:00:27.9]} 17... Nxf2+ {[%clk 0:01:39.3]} 18. Bxf2 {[%clk
0:00:26.1]} 18... f5 {[%clk 0:01:35.6]} 19. exf6 {[%clk 0:00:23.4]} 19... Rxf6
{[%clk 0:01:25.2]} 20. Bg3 {[%clk 0:00:23.4]} 20... Qd7 {[%clk 0:01:17.1]} 21.
Rxf6 {[%clk 0:00:22.5]} 21... Bxf6 {[%clk 0:01:16.4]} 22. Rf1 {[%clk 0:00:23.4]}
22... Rf8 {[%clk 0:01:02.3]} 23. Qa6 {[%clk 0:00:20.9]} 23... Bd8 {[%clk
0:00:57.4]} 24. Rxf8+ {[%clk 0:00:15.8]} 24... Kxf8 {[%clk 0:00:56.6]} 25. h3
{[%clk 0:00:16.1]} 25... Kf7 {[%clk 0:00:56.4]} 26. b3 {[%clk 0:00:12.7]} 26...
h6 {[%clk 0:00:54.5]} 27. Bd6 {[%clk 0:00:11.8]} 27... Kg8 {[%clk 0:00:42.4]}
28. Kg1 {[%clk 0:00:11.9]} 28... Bg5 {[%clk 0:00:38.9]} 29. Qxa5 {[%clk
0:00:09.7]} 29... Bxe3+ {[%clk 0:00:36]} 30. Kh1 {[%clk 0:00:10]} 30... Qf7
{[%clk 0:00:26.1]} 31. Qa8+ {[%clk 0:00:09.2]} 31... Kh7 {[%clk 0:00:24.3]} 32.
Qa6 {[%clk 0:00:09.7]} 32... Qf2 {[%clk 0:00:20.4]} 33. Qd3+ {[%clk 0:00:09.8]}
33... g6 {[%clk 0:00:17.2]} 34. Kh2 {[%clk 0:00:06.7]} 34... Qg1+ {[%clk
0:00:14.4]} 35. Kg3 {[%clk 0:00:06.9]} 35... Qf2+ {[%clk 0:00:14.5]} 36. Kh2
{[%clk 0:00:06.2]} 36... Qg1+ {[%clk 0:00:10.8]} 37. Kg3 {[%clk 0:00:06.4]}
37... Qf2+ {[%clk 0:00:10.8]} 38. Kh2 {[%clk 0:00:06.9]} 1/2-1/2

[Event "Late-Titled-Tuesday-Blitz-April-16-2024"]
[Site "Chess.com"]
[Date "2024.04.16"]
[Round "4"]
[White "albayo"]
[Black "kalxandria"]
[Result "1/2-1/2"]
[WhiteElo "2529"]
[BlackElo "2231"]
[TimeControl "180+1"]
[EndTime "14:37:44 PDT"]
[Termination "Game drawn by repetition"]

1. Nf3 {[%clk 0:02:59.9]} 1... Nf6 {[%clk 0:02:58.8]} 2. c4 {[%clk 0:02:58.9]}
2... e6 {[%clk 0:02:57.3]} 3. g3 {[%clk 0:02:59.2]} 3... d5 {[%clk 0:02:56.6]}
4. Bg2 {[%clk 0:02:59.4]} 4... Be7 {[%clk 0:02:55.4]} 5. O-O {[%clk 0:02:59.8]}
5... O-O {[%clk 0:02:54.6]} 6. d4 {[%clk 0:02:59.6]} 6... c6 {[%clk 0:02:53.7]}
7. Qc2 {[%clk 0:02:59.6]} 7... b6 {[%clk 0:02:52.6]} 8. Nbd2 {[%clk 0:02:59.5]}
8... Bb7 {[%clk 0:02:51.6]} 9. e4 {[%clk 0:02:59.5]} 9... Nbd7 {[%clk
0:02:45.7]} 10. e5 {[%clk 0:02:52]} 10... Ne8 {[%clk 0:02:45]} 11. b3 {[%clk
0:02:51.3]} 11... Rc8 {[%clk 0:02:43.5]} 12. Bb2 {[%clk 0:02:43.5]} 12... c5
{[%clk 0:02:41.7]} 13. dxc5 {[%clk 0:02:39.5]} 13... Nxc5 {[%clk 0:02:34.4]} 14.
Rad1 {[%clk 0:02:31.2]} 14... Qc7 {[%clk 0:02:31.3]} 15. Nd4 {[%clk 0:01:54.7]}
15... dxc4 {[%clk 0:02:23.8]} 16. Bxb7 {[%clk 0:01:39.3]} 16... Qxb7 {[%clk
0:02:22.8]} 17. Nxc4 {[%clk 0:01:39.5]} 17... b5 {[%clk 0:02:17.3]} 18. Nd6
{[%clk 0:01:22.2]} 18... Bxd6 {[%clk 0:02:07.8]} 19. exd6 {[%clk 0:01:23.1]}
19... Na4 {[%clk 0:02:06.1]} 20. Qb1 {[%clk 0:01:01.4]} 20... Nxb2 {[%clk
0:02:04.6]} 21. Qxb2 {[%clk 0:01:02.3]} 21... Nxd6 {[%clk 0:02:03.2]} 22. Nxe6
{[%clk 0:01:01.8]} 22... fxe6 {[%clk 0:01:59.2]} 23. Rxd6 {[%clk 0:01:02]} 23...
Rf6 {[%clk 0:01:52.1]} 24. Qd4 {[%clk 0:00:58.5]} 24... Rcf8 {[%clk 0:01:47.7]}
25. Rd7 {[%clk 0:00:58.5]} 25... Qa6 {[%clk 0:01:42.7]} 26. Rxa7 {[%clk
0:00:46.6]} 26... Qc6 {[%clk 0:01:41.2]} 27. Qd7 {[%clk 0:00:41.7]} 27... Qxd7
{[%clk 0:01:32.8]} 28. Rxd7 {[%clk 0:00:42.6]} 28... Ra8 {[%clk 0:01:32.1]} 29.
Ra1 {[%clk 0:00:43]} 29... e5 {[%clk 0:01:24.6]} 30. a4 {[%clk 0:00:41.5]} 30...
bxa4 {[%clk 0:01:23.2]} 31. bxa4 {[%clk 0:00:42.4]} 31... Rfa6 {[%clk
0:01:23.2]} 32. Rb1 {[%clk 0:00:37.9]} 32... Rxa4 {[%clk 0:01:02.1]} 33. Rbb7
{[%clk 0:00:36.4]} 33... Rg4 {[%clk 0:01:02.3]} 34. Kg2 {[%clk 0:00:36.5]} 34...
e4 {[%clk 0:01:01.2]} 35. h3 {[%clk 0:00:35.8]} 35... Rg6 {[%clk 0:01:00.8]} 36.
Re7 {[%clk 0:00:35.8]} 36... h6 {[%clk 0:00:57.2]} 37. Rxe4 {[%clk 0:00:33.2]}
37... Ra2 {[%clk 0:00:55.5]} 38. Ree7 {[%clk 0:00:32.6]} 38... Kh8 {[%clk
0:00:51.4]} 39. h4 {[%clk 0:00:30.2]} 39... Rf6 {[%clk 0:00:49.6]} 40. Rxg7
{[%clk 0:00:24.3]} 40... Rfxf2+ {[%clk 0:00:47]} 41. Kh3 {[%clk 0:00:24.6]}
41... h5 {[%clk 0:00:44.7]} 42. Rh7+ {[%clk 0:00:23.8]} 42... Kg8 {[%clk
0:00:44.3]} 43. Rxh5 {[%clk 0:00:23.5]} 43... Rh2+ {[%clk 0:00:43.2]} 44. Kg4
{[%clk 0:00:23.8]} 44... Ra4+ {[%clk 0:00:43.7]} 45. Kf3 {[%clk 0:00:16.6]}
45... Ra3+ {[%clk 0:00:40.1]} 46. Kf4 {[%clk 0:00:15.3]} 46... Ra4+ {[%clk
0:00:41]} 47. Kg5 {[%clk 0:00:09]} 47... Rg2 {[%clk 0:00:39.9]} 48. Rb3 {[%clk
0:00:07.3]} 48... Kg7 {[%clk 0:00:39.7]} 49. Rb7+ {[%clk 0:00:06.2]} 49... Kg8
{[%clk 0:00:39.5]} 50. Rb8+ {[%clk 0:00:06.6]} 50... Kg7 {[%clk 0:00:39.5]} 51.
Rb7+ {[%clk 0:00:07.3]} 51... Kg8 {[%clk 0:00:39.8]} 1/2-1/2

[Event "Late-Titled-Tuesday-Blitz-April-16-2024"]
[Site "Chess.com"]
[Date "2024.04.16"]
[Round "4"]
[White "Godzillator"]
[Black "N_Mullodzhanov"]
[Result "0-1"]
[WhiteElo "2372"]
[BlackElo "2533"]
[TimeControl "180+1"]
[EndTime "14:37:45 PDT"]
[Termination "N_Mullodzhanov won by checkmate"]

1. c4 {[%clk 0:03:00.9]} 1... e5 {[%clk 0:02:59.2]} 2. d3 {[%clk 0:03:00]} 2...
Nf6 {[%clk 0:02:58.8]} 3. Nf3 {[%clk 0:03:00.4]} 3... Nc6 {[%clk 0:02:58.3]} 4.
g3 {[%clk 0:03:00.8]} 4... Bc5 {[%clk 0:02:57.6]} 5. Bg2 {[%clk 0:03:00.9]} 5...
O-O {[%clk 0:02:57]} 6. O-O {[%clk 0:03:01.1]} 6... d5 {[%clk 0:02:56.2]} 7.
cxd5 {[%clk 0:03:00.6]} 7... Nxd5 {[%clk 0:02:56.3]} 8. Nc3 {[%clk 0:03:01]}
8... Nf6 {[%clk 0:02:54.4]} 9. Bg5 {[%clk 0:02:59.9]} 9... Be7 {[%clk
0:02:47.3]} 10. Rc1 {[%clk 0:02:57]} 10... h6 {[%clk 0:02:47.2]} 11. Bd2 {[%clk
0:02:55.8]} 11... Be6 {[%clk 0:02:46.6]} 12. a3 {[%clk 0:02:43.9]} 12... Re8
{[%clk 0:02:32.1]} 13. Na4 {[%clk 0:02:35.2]} 13... Bd5 {[%clk 0:02:02.1]} 14.
Nc5 {[%clk 0:02:32.5]} 14... b6 {[%clk 0:01:58.2]} 15. Na4 {[%clk 0:02:28.8]}
15... Nd4 {[%clk 0:01:52.9]} 16. Nxd4 {[%clk 0:02:07]} 16... exd4 {[%clk
0:01:53.1]} 17. b4 {[%clk 0:01:54.1]} 17... Bxg2 {[%clk 0:01:45.8]} 18. Kxg2
{[%clk 0:01:54.2]} 18... Qd5+ {[%clk 0:01:38.5]} 19. f3 {[%clk 0:01:54.1]} 19...
Bd6 {[%clk 0:01:32.7]} 20. Nb2 {[%clk 0:01:50.9]} 20... b5 {[%clk 0:01:24.6]}
21. Bf4 {[%clk 0:01:32.6]} 21... Bxf4 {[%clk 0:01:21.1]} 22. gxf4 {[%clk
0:01:32.9]} 22... Ng4 {[%clk 0:01:20.3]} 23. Qd2 {[%clk 0:01:22.1]} 23... Ne3+
{[%clk 0:01:18.6]} 24. Kh1 {[%clk 0:01:22.4]} 24... Nxf1 {[%clk 0:01:15.7]} 25.
Rxf1 {[%clk 0:01:23.3]} 25... Re6 {[%clk 0:01:12.2]} 26. Nd1 {[%clk 0:01:16.4]}
26... Rae8 {[%clk 0:01:08.3]} 27. Rf2 {[%clk 0:01:15.2]} 27... c6 {[%clk
0:00:57.3]} 28. Rg2 {[%clk 0:01:14]} 28... g6 {[%clk 0:00:52.6]} 29. Qc2 {[%clk
0:01:10.7]} 29... h5 {[%clk 0:00:51.1]} 30. Kg1 {[%clk 0:01:05.8]} 30... Kg7
{[%clk 0:00:50.7]} 31. Kf1 {[%clk 0:01:05.8]} 31... Rf6 {[%clk 0:00:48.3]} 32.
Nf2 {[%clk 0:00:47.4]} 32... Rxf4 {[%clk 0:00:38.7]} 33. Ne4 {[%clk 0:00:47.7]}
33... Rf5 {[%clk 0:00:34]} 34. Kf2 {[%clk 0:00:36.4]} 34... Rfe5 {[%clk
0:00:33.9]} 35. Kf1 {[%clk 0:00:31.4]} 35... Qe6 {[%clk 0:00:24.7]} 36. Ke1
{[%clk 0:00:20.2]} 36... Rf5 {[%clk 0:00:23.7]} 37. Kd1 {[%clk 0:00:19.7]} 37...
Ra8 {[%clk 0:00:18.4]} 38. Qb2 {[%clk 0:00:18.1]} 38... Rd5 {[%clk 0:00:17.5]}
39. Rg5 {[%clk 0:00:16.2]} 39... a5 {[%clk 0:00:15.5]} 40. Rxd5 {[%clk 0:00:15]}
40... Qxd5 {[%clk 0:00:15.8]} 41. h4 {[%clk 0:00:11.7]} 41... axb4 {[%clk
0:00:16]} 42. axb4 {[%clk 0:00:11.6]} 42... Ra2 {[%clk 0:00:16.1]} 43. Qc1
{[%clk 0:00:10.1]} 43... Qb3+ {[%clk 0:00:16.1]} 44. Ke1 {[%clk 0:00:10.5]}
44... Qxb4+ {[%clk 0:00:16.6]} 45. Kf1 {[%clk 0:00:10.4]} 45... Qb2 {[%clk
0:00:16.7]} 46. Qxc6 {[%clk 0:00:10.2]} 46... Qxe2+ {[%clk 0:00:16.3]} 47. Kg1
{[%clk 0:00:10.6]} 47... Qg2# {[%clk 0:00:17.2]} 0-1

[Event "Late-Titled-Tuesday-Blitz-April-16-2024"]
[Site "Chess.com"]
[Date "2024.04.16"]
[Round "4"]
[White "steepedgames"]
[Black "Meri-Arabidze"]
[Result "1-0"]
[WhiteElo "2492"]
[BlackElo "2649"]
[TimeControl "180+1"]
[EndTime "14:37:48 PDT"]
[Termination "steepedgames won by resignation"]

1. d4 {[%clk 0:03:00.9]} 1... Nf6 {[%clk 0:02:59.6]} 2. Bg5 {[%clk 0:02:59.7]}
2... d5 {[%clk 0:02:59.3]} 3. Nf3 {[%clk 0:02:57.1]} 3... Ne4 {[%clk 0:02:55.8]}
4. Bf4 {[%clk 0:02:56.2]} 4... e6 {[%clk 0:02:55.3]} 5. e3 {[%clk 0:02:56.3]}
5... Bd6 {[%clk 0:02:55.3]} 6. Bd3 {[%clk 0:02:56.1]} 6... O-O {[%clk
0:02:51.4]} 7. O-O {[%clk 0:02:55.4]} 7... c5 {[%clk 0:02:51.1]} 8. c3 {[%clk
0:02:55.3]} 8... Bxf4 {[%clk 0:02:48.7]} 9. exf4 {[%clk 0:02:55.2]} 9... Nc6
{[%clk 0:02:49.3]} 10. dxc5 {[%clk 0:02:53]} 10... Nxc5 {[%clk 0:02:47.7]} 11.
Bc2 {[%clk 0:02:53.1]} 11... g6 {[%clk 0:02:39.4]} 12. Nbd2 {[%clk 0:02:50.5]}
12... b6 {[%clk 0:02:39.8]} 13. Ne5 {[%clk 0:02:33.5]} 13... Qc7 {[%clk
0:02:37.1]} 14. Re1 {[%clk 0:02:32.5]} 14... Ba6 {[%clk 0:02:33.7]} 15. Ndf3
{[%clk 0:02:28.2]} 15... Rad8 {[%clk 0:02:27.8]} 16. Nd4 {[%clk 0:02:17.9]}
16... Nxd4 {[%clk 0:02:19.2]} 17. Qxd4 {[%clk 0:02:13.8]} 17... Nd7 {[%clk
0:01:59.5]} 18. Ng4 {[%clk 0:02:11.4]} 18... h5 {[%clk 0:01:37.1]} 19. Nh6+
{[%clk 0:01:29.1]} 19... Kh7 {[%clk 0:01:36.7]} 20. Nxf7 {[%clk 0:01:29.7]}
20... Rxf7 {[%clk 0:01:37.3]} 21. Rxe6 {[%clk 0:01:28.7]} 21... Rg8 {[%clk
0:01:30.5]} 22. g3 {[%clk 0:01:28.7]} 22... Qc4 {[%clk 0:01:21.3]} 23. Qd1
{[%clk 0:01:19.6]} 23... Nf6 {[%clk 0:01:09.7]} 24. Qf3 {[%clk 0:01:09.3]} 24...
Bc8 {[%clk 0:01:02.9]} 25. Bd3 {[%clk 0:01:04.4]} 25... Qc5 {[%clk 0:00:56.5]}
26. Re5 {[%clk 0:00:39.5]} 26... Bg4 {[%clk 0:00:54.7]} 27. Qg2 {[%clk
0:00:36.3]} 27... Qc8 {[%clk 0:00:42.7]} 28. Rae1 {[%clk 0:00:35.9]} 28... Kg7
{[%clk 0:00:31.9]} 29. f3 {[%clk 0:00:32.1]} 29... Bf5 {[%clk 0:00:23.6]} 30.
Bxf5 {[%clk 0:00:31.3]} 30... gxf5 {[%clk 0:00:24.5]} 31. Qh3 {[%clk 0:00:31.6]}
31... Qc5+ {[%clk 0:00:13.1]} 32. Kh1 {[%clk 0:00:27.7]} 32... Qf2 {[%clk
0:00:12.3]} 33. Qxf5 {[%clk 0:00:25.3]} 33... Qxf3+ {[%clk 0:00:11.3]} 34. Kg1
{[%clk 0:00:25.7]} 34... Qg4 {[%clk 0:00:05.7]} 35. Qd3 {[%clk 0:00:22.6]} 35...
Kh8 {[%clk 0:00:04.4]} 36. Qd4 {[%clk 0:00:20.6]} 36... Kh7 {[%clk 0:00:03.7]}
37. Qd3+ {[%clk 0:00:20.1]} 37... Ne4 {[%clk 0:00:04]} 38. Rxd5 {[%clk
0:00:19.4]} 38... Rxf4 {[%clk 0:00:04.4]} 39. Rd4 {[%clk 0:00:16.2]} 39... h4
{[%clk 0:00:02.9]} 40. Rdxe4 {[%clk 0:00:16.1]} 40... Rxe4 {[%clk 0:00:02.8]}
41. Qxe4+ {[%clk 0:00:16.9]} 41... Qxe4 {[%clk 0:00:02.5]} 42. Rxe4 {[%clk
0:00:17.8]} 42... hxg3 {[%clk 0:00:03.4]} 43. Rh4+ {[%clk 0:00:17.6]} 43... Kg6
{[%clk 0:00:03.1]} 44. Rg4+ {[%clk 0:00:18.3]} 44... Kf7 {[%clk 0:00:03.3]} 45.
Rxg8 {[%clk 0:00:19.2]} 45... Kxg8 {[%clk 0:00:03.9]} 46. hxg3 {[%clk
0:00:19.5]} 46... Kf7 {[%clk 0:00:04.1]} 47. Kg2 {[%clk 0:00:20.4]} 1-0

[Event "Late-Titled-Tuesday-Blitz-April-16-2024"]
[Site "Chess.com"]
[Date "2024.04.16"]
[Round "4"]
[White "HajiyevKanan"]
[Black "Zhigalko_Sergei"]
[Result "0-1"]
[WhiteElo "2608"]
[BlackElo "2925"]
[TimeControl "180+1"]
[EndTime "14:37:50 PDT"]
[Termination "Zhigalko_Sergei won by checkmate"]

1. d4 {[%clk 0:02:58.4]} 1... Nf6 {[%clk 0:02:59.8]} 2. Nf3 {[%clk 0:02:59.1]}
2... e6 {[%clk 0:03:00.1]} 3. e3 {[%clk 0:02:59.8]} 3... b6 {[%clk 0:03:00.5]}
4. Be2 {[%clk 0:03:00.5]} 4... Bb7 {[%clk 0:03:01.1]} 5. O-O {[%clk 0:03:01.4]}
5... d5 {[%clk 0:03:01.7]} 6. b3 {[%clk 0:03:02]} 6... Bd6 {[%clk 0:03:02.2]} 7.
Bb2 {[%clk 0:03:02.7]} 7... O-O {[%clk 0:02:57.5]} 8. Ne5 {[%clk 0:03:03.1]}
8... c5 {[%clk 0:02:54.4]} 9. Nd2 {[%clk 0:03:01.8]} 9... Nc6 {[%clk 0:02:54]}
10. f4 {[%clk 0:03:00.6]} 10... Rc8 {[%clk 0:02:52.8]} 11. Bf3 {[%clk
0:02:53.9]} 11... Ne7 {[%clk 0:02:49.8]} 12. c3 {[%clk 0:02:48.1]} 12... Ne4
{[%clk 0:02:46.9]} 13. Qc2 {[%clk 0:02:32.1]} 13... f6 {[%clk 0:02:39.8]} 14.
Ng4 {[%clk 0:02:24.3]} 14... cxd4 {[%clk 0:02:28.4]} 15. exd4 {[%clk 0:02:17.3]}
15... Kh8 {[%clk 0:01:56.4]} 16. g3 {[%clk 0:02:01.9]} 16... b5 {[%clk
0:01:20.2]} 17. Qd3 {[%clk 0:01:18.6]} 17... Qb6 {[%clk 0:00:53]} 18. Kg2 {[%clk
0:01:04.1]} 18... Ng6 {[%clk 0:00:35]} 19. Rae1 {[%clk 0:00:59]} 19... f5 {[%clk
0:00:28.2]} 20. Ne5 {[%clk 0:00:58.3]} 20... Nxe5 {[%clk 0:00:28]} 21. fxe5
{[%clk 0:00:55]} 21... Be7 {[%clk 0:00:28.3]} 22. b4 {[%clk 0:00:28.5]} 22...
Nxd2 {[%clk 0:00:13.4]} 23. Qxd2 {[%clk 0:00:28.7]} 23... Rf7 {[%clk 0:00:11.4]}
24. Bh5 {[%clk 0:00:20.8]} 24... g6 {[%clk 0:00:11.2]} 25. Be2 {[%clk
0:00:21.5]} 25... Bc6 {[%clk 0:00:10.1]} 26. Bd3 {[%clk 0:00:21.2]} 26... Rcf8
{[%clk 0:00:09.5]} 27. Bc1 {[%clk 0:00:20.8]} 27... g5 {[%clk 0:00:09.1]} 28.
Qe2 {[%clk 0:00:21.3]} 28... Bd7 {[%clk 0:00:07.6]} 29. Kh1 {[%clk 0:00:17.5]}
29... a6 {[%clk 0:00:07.2]} 30. Qh5 {[%clk 0:00:17.5]} 30... Rg7 {[%clk
0:00:06.9]} 31. Qh6 {[%clk 0:00:17]} 31... Rg6 {[%clk 0:00:04.6]} 32. Qh5 {[%clk
0:00:17.3]} 32... Rg7 {[%clk 0:00:04.8]} 33. Qe2 {[%clk 0:00:17.2]} 33... Qc7
{[%clk 0:00:04.8]} 34. Bd2 {[%clk 0:00:16.8]} 34... Be8 {[%clk 0:00:04.9]} 35.
Ra1 {[%clk 0:00:16.1]} 35... Qc8 {[%clk 0:00:04]} 36. a4 {[%clk 0:00:13.6]}
36... bxa4 {[%clk 0:00:03.6]} 37. Bxa6 {[%clk 0:00:14.5]} 37... Qd8 {[%clk
0:00:03.3]} 38. Bb5 {[%clk 0:00:14.7]} 38... Bg6 {[%clk 0:00:03]} 39. Rxa4
{[%clk 0:00:14.1]} 39... f4 {[%clk 0:00:03.6]} 40. gxf4 {[%clk 0:00:09.8]} 40...
Be4+ {[%clk 0:00:03.1]} 41. Kg1 {[%clk 0:00:08.7]} 41... gxf4+ {[%clk
0:00:03.2]} 42. Kf2 {[%clk 0:00:06.8]} 42... Bh4# {[%clk 0:00:03.8]} 0-1

[Event "Late-Titled-Tuesday-Blitz-April-16-2024"]
[Site "Chess.com"]
[Date "2024.04.16"]
[Round "4"]
[White "PotapovaM"]
[Black "AEMEffi"]
[Result "1-0"]
[WhiteElo "2542"]
[BlackElo "2281"]
[TimeControl "180+1"]
[EndTime "14:37:50 PDT"]
[Termination "PotapovaM won on time"]

1. d4 {[%clk 0:02:59]} 1... Nf6 {[%clk 0:02:58.5]} 2. c4 {[%clk 0:02:59.1]} 2...
g6 {[%clk 0:02:58.9]} 3. Nc3 {[%clk 0:02:58]} 3... d5 {[%clk 0:02:59.1]} 4. cxd5
{[%clk 0:02:55.5]} 4... Nxd5 {[%clk 0:03:00]} 5. h4 {[%clk 0:02:43.8]} 5... Nxc3
{[%clk 0:02:46.6]} 6. bxc3 {[%clk 0:02:42.1]} 6... c5 {[%clk 0:02:46.6]} 7. Nf3
{[%clk 0:02:39]} 7... cxd4 {[%clk 0:02:44.4]} 8. cxd4 {[%clk 0:02:38.6]} 8...
Bg7 {[%clk 0:02:41.9]} 9. h5 {[%clk 0:02:36.7]} 9... Nc6 {[%clk 0:02:41.7]} 10.
h6 {[%clk 0:02:35]} 10... Bf6 {[%clk 0:02:41.4]} 11. Bb2 {[%clk 0:02:12.6]}
11... Qa5+ {[%clk 0:02:37]} 12. Qd2 {[%clk 0:01:59.6]} 12... Qxd2+ {[%clk
0:02:36.8]} 13. Kxd2 {[%clk 0:01:56.4]} 13... Bg4 {[%clk 0:02:37.2]} 14. e3
{[%clk 0:01:55.4]} 14... Rd8 {[%clk 0:02:20.8]} 15. Nh2 {[%clk 0:01:17.5]} 15...
Bc8 {[%clk 0:02:06.7]} 16. f4 {[%clk 0:01:17.7]} 16... O-O {[%clk 0:01:56.1]}
17. Nf3 {[%clk 0:01:17.8]} 17... Bf5 {[%clk 0:01:49.3]} 18. Rc1 {[%clk
0:01:08.1]} 18... e6 {[%clk 0:01:33.4]} 19. Bd3 {[%clk 0:01:08.5]} 19... Be7
{[%clk 0:01:31.1]} 20. e4 {[%clk 0:01:02.7]} 20... Bg4 {[%clk 0:01:26.1]} 21.
Nh2 {[%clk 0:01:01.7]} 21... f5 {[%clk 0:01:25]} 22. Nxg4 {[%clk 0:01:00.3]}
22... fxg4 {[%clk 0:01:25.9]} 23. Ke3 {[%clk 0:01:00.7]} 23... e5 {[%clk
0:01:17.2]} 24. Bc4+ {[%clk 0:00:58.2]} 24... Kh8 {[%clk 0:01:15.6]} 25. dxe5
{[%clk 0:00:39.4]} 25... Bc5+ {[%clk 0:01:12.2]} 26. Ke2 {[%clk 0:00:39.9]}
26... Nd4+ {[%clk 0:01:03.7]} 27. Bxd4 {[%clk 0:00:39.7]} 27... Rxd4 {[%clk
0:00:59.1]} 28. Bd5 {[%clk 0:00:39.9]} 28... b6 {[%clk 0:00:49.8]} 29. g3 {[%clk
0:00:31]} 29... Rb4 {[%clk 0:00:41.3]} 30. Rb1 {[%clk 0:00:21.7]} 30... Ra4
{[%clk 0:00:24.4]} 31. e6 {[%clk 0:00:18.4]} 31... g5 {[%clk 0:00:15.8]} 32. f5
{[%clk 0:00:17.7]} 32... Be7 {[%clk 0:00:15.5]} 33. Rhc1 {[%clk 0:00:15.4]}
33... Ra3 {[%clk 0:00:10.8]} 34. Bb3 {[%clk 0:00:15.5]} 34... Rd8 {[%clk
0:00:07.1]} 35. Rc7 {[%clk 0:00:14.6]} 35... Bf6 {[%clk 0:00:06.4]} 36. Rd7
{[%clk 0:00:14.6]} 36... Rc8 {[%clk 0:00:03.4]} 37. e7 {[%clk 0:00:12.7]} 37...
Ra5 {[%clk 0:00:01.8]} 38. Re1 {[%clk 0:00:12.6]} 38... Re5 {[%clk 0:00:01.5]}
39. Be6 {[%clk 0:00:11.5]} 1-0

[Event "Late-Titled-Tuesday-Blitz-April-16-2024"]
[Site "Chess.com"]
[Date "2024.04.16"]
[Round "4"]
[White "ArchibaldCerveza29"]
[Black "venturov"]
[Result "1-0"]
[WhiteElo "2355"]
[BlackElo "2502"]
[TimeControl "180+1"]
[EndTime "14:37:50 PDT"]
[Termination "ArchibaldCerveza29 won by checkmate"]

1. e4 {[%clk 0:03:00.9]} 1... Nf6 {[%clk 0:02:42.5]} 2. e5 {[%clk 0:03:00.2]}
2... Nd5 {[%clk 0:02:42.9]} 3. Nc3 {[%clk 0:03:00.1]} 3... e6 {[%clk 0:02:42.2]}
4. Nf3 {[%clk 0:02:59.4]} 4... d6 {[%clk 0:02:42.3]} 5. d4 {[%clk 0:02:59.2]}
5... c5 {[%clk 0:02:41.8]} 6. exd6 {[%clk 0:02:51]} 6... Bxd6 {[%clk 0:02:37.2]}
7. Nxd5 {[%clk 0:02:51]} 7... exd5 {[%clk 0:02:38.1]} 8. dxc5 {[%clk 0:02:48.4]}
8... Bxc5 {[%clk 0:02:39]} 9. Bd3 {[%clk 0:02:48.3]} 9... O-O {[%clk 0:02:30.7]}
10. O-O {[%clk 0:02:45.6]} 10... h6 {[%clk 0:02:30]} 11. h3 {[%clk 0:02:44.8]}
11... Nc6 {[%clk 0:02:29.4]} 12. c3 {[%clk 0:02:42.4]} 12... Be6 {[%clk
0:02:22.6]} 13. Bf4 {[%clk 0:02:38.6]} 13... d4 {[%clk 0:02:19.6]} 14. b4 {[%clk
0:01:49.3]} 14... Bb6 {[%clk 0:01:53]} 15. b5 {[%clk 0:01:42.1]} 15... Ne7
{[%clk 0:01:37.7]} 16. Nxd4 {[%clk 0:01:41.6]} 16... Nd5 {[%clk 0:01:28.9]} 17.
Bd2 {[%clk 0:01:32]} 17... Qf6 {[%clk 0:01:06.8]} 18. Nxe6 {[%clk 0:01:00.9]}
18... fxe6 {[%clk 0:01:07.7]} 19. Qe1 {[%clk 0:00:58.8]} 19... Rad8 {[%clk
0:00:59.6]} 20. Be4 {[%clk 0:00:41.8]} 20... Kh8 {[%clk 0:00:52.9]} 21. c4
{[%clk 0:00:40.5]} 21... Nf4 {[%clk 0:00:31.4]} 22. Bxf4 {[%clk 0:00:38.9]}
22... Qxf4 {[%clk 0:00:32.3]} 23. Bxb7 {[%clk 0:00:22.1]} 23... Qxc4 {[%clk
0:00:19]} 24. Bc6 {[%clk 0:00:18.8]} 24... Rf6 {[%clk 0:00:15]} 25. Qe4 {[%clk
0:00:18.4]} 25... Qc5 {[%clk 0:00:12.7]} 26. Rac1 {[%clk 0:00:17.4]} 26... Qg5
{[%clk 0:00:11.3]} 27. Rc3 {[%clk 0:00:16.7]} 27... Rdf8 {[%clk 0:00:11.2]} 28.
Rc2 {[%clk 0:00:15.9]} 28... Qg3 {[%clk 0:00:06.9]} 29. Qe1 {[%clk 0:00:07.7]}
29... Rg6 {[%clk 0:00:04.4]} 30. a4 {[%clk 0:00:06.6]} 30... a5 {[%clk
0:00:03.7]} 31. bxa6 {[%clk 0:00:05.1]} 31... e5 {[%clk 0:00:04]} 32. Be4 {[%clk
0:00:04.2]} 32... Rg5 {[%clk 0:00:03.1]} 33. Rc3 {[%clk 0:00:04.5]} 33... Qf4
{[%clk 0:00:02.3]} 34. Rf3 {[%clk 0:00:04.3]} 34... Qxf3 {[%clk 0:00:01.7]} 35.
Bxf3 {[%clk 0:00:05.2]} 35... Rxf3 {[%clk 0:00:01.6]} 36. Qe4 {[%clk 0:00:04.7]}
36... Rfg3 {[%clk 0:00:01.8]} 37. Kh1 {[%clk 0:00:04.5]} 37... Rxg2 {[%clk
0:00:02.1]} 38. Qxg2 {[%clk 0:00:04.5]} 38... Rxg2 {[%clk 0:00:03]} 39. Kxg2
{[%clk 0:00:05.3]} 39... Kh7 {[%clk 0:00:03.2]} 40. Rb1 {[%clk 0:00:06]} 40...
Kg6 {[%clk 0:00:04.1]} 41. Rxb6+ {[%clk 0:00:06.4]} 41... Kf5 {[%clk 0:00:04.6]}
42. a7 {[%clk 0:00:07.3]} 42... g5 {[%clk 0:00:05.5]} 43. a8=Q {[%clk
0:00:08.2]} 43... Kf4 {[%clk 0:00:06.1]} 44. Qf3# {[%clk 0:00:08.2]} 1-0